[Event "15. ročník Dobrovický rapid Tereos TTD a.s."]
[Site "Dobrovice, Czech Republic"]
[Date "2020.02.29"]
[Round "1.13"]
[White "Szeko Ludovit"]
[Black "Mar Tomas"]
[Result "1-0"]
[TimeControl "15m + 3s / tah"]
[WhiteElo "2051"]
[BlackElo "1711"]

1. d4 {[%clk 00:15:03]} {[%emt 00:00:02]} Nf6 {[%clk 00:15:05]} {[%emt
00:00:02]} 2. Bf4 {[%clk 00:15:02]} {[%emt 00:00:04]} g6 {[%clk 00:15:04]}
{[%emt 00:00:04]} 3. c3 {[%clk 00:15:03]} {[%emt 00:00:01]} Bg7 {[%clk
00:15:05]} {[%emt 00:00:02]} 4. e3 {[%clk 00:15:05]} {[%emt 00:00:02]} O-O
{[%clk 00:15:04]} {[%emt 00:00:04]} 5. Nd2 {[%clk 00:15:06]} {[%emt 00:00:01]}
d6 {[%clk 00:14:39]} {[%emt 00:00:27]} 6. Ngf3 {[%clk 00:15:08]} {[%emt
00:00:02]} Nbd7 {[%clk 00:14:35]} {[%emt 00:00:07]} 7. h3 {[%clk 00:15:09]}
{[%emt 00:00:02]} c5 {[%clk 00:14:16]} {[%emt 00:00:21]} 8. Be2 {[%clk
00:15:10]} {[%emt 00:00:03]} a6 {[%clk 00:14:00]} {[%emt 00:00:18]} 9. O-O
{[%clk 00:15:03]} {[%emt 00:00:10]} b5 {[%clk 00:13:53]} {[%emt 00:00:10]} 10.
Bh2 {[%clk 00:15:04]} {[%emt 00:00:03]} Bb7 {[%clk 00:13:52]} {[%emt 00:00:03]}
11. a4 {[%clk 00:15:04]} {[%emt 00:00:03]} c4 {[%clk 00:13:12]} {[%emt
00:00:43]} 12. b3 {[%clk 00:15:04]} {[%emt 00:00:03]} cxb3 {[%clk 00:12:50]}
{[%emt 00:00:25]} 13. Qxb3 {[%clk 00:15:04]} {[%emt 00:00:03]} Bd5 {[%clk
00:11:38]} {[%emt 00:01:15]} 14. Qa3 {[%clk 00:15:05]} {[%emt 00:00:02]} bxa4
{[%clk 00:10:55]} {[%emt 00:00:45]} 15. Qxa4 {[%clk 00:15:06]} {[%emt
00:00:03]} a5 {[%clk 00:10:43]} {[%emt 00:00:15]} 16. c4 {[%clk 00:15:04]}
{[%emt 00:00:05]} Nb6 {[%clk 00:09:53]} {[%emt 00:00:52]} 17. Qb5 {[%clk
00:14:57]} {[%emt 00:00:11]} Bxf3 {[%clk 00:08:03]} {[%emt 00:01:53]} 18. Bxf3
{[%clk 00:14:26]} {[%emt 00:00:34]} Rb8 {[%clk 00:07:40]} {[%emt 00:00:26]} 19.
Qxa5 {[%clk 00:14:21]} {[%emt 00:00:08]} Qc8 {[%clk 00:07:11]} {[%emt
00:00:30]} 20. c5 {[%clk 00:13:50]} {[%emt 00:00:35]} dxc5 {[%clk 00:06:53]}
{[%emt 00:00:21]} 21. Bxb8 {[%clk 00:13:50]} {[%emt 00:00:04]} Qxb8 {[%clk
00:06:32]} {[%emt 00:00:24]} 22. Rfb1 {[%clk 00:13:46]} {[%emt 00:00:07]} Nfd7
{[%clk 00:06:16]} {[%emt 00:00:18]} 23. Rb5 {[%clk 00:11:20]} {[%emt 00:02:30]}
cxd4 {[%clk 00:04:32]} {[%emt 00:01:47]} 24. Rab1 {[%clk 00:10:46]} {[%emt
00:00:36]} dxe3 {[%clk 00:04:06]} {[%emt 00:00:29]} 25. fxe3 {[%clk 00:10:47]}
{[%emt 00:00:03]} Qc7 {[%clk 00:03:26]} {[%emt 00:00:43]} 26. Rxb6 {[%clk
00:10:36]} {[%emt 00:00:13]} Nxb6 {[%clk 00:02:44]} {[%emt 00:00:44]} 27. Qxb6
{[%clk 00:10:34]} {[%emt 00:00:06]} Qc3 {[%clk 00:02:24]} {[%emt 00:00:23]} 28.
Nf1 {[%clk 00:10:27]} {[%emt 00:00:11]} Rc8 {[%clk 00:01:29]} {[%emt 00:00:57]}
29. Rd1 {[%clk 00:10:17]} {[%emt 00:00:13]} Bf6 {[%clk 00:00:24]} {[%emt
00:01:08]} 30. Rd8+ {[%clk 00:09:59]} {[%emt 00:00:21]} Rxd8 {[%clk 00:00:26]}
{[%emt 00:00:02]} 31. Qxd8+ {[%clk 00:10:00]} {[%emt 00:00:02]} Kg7 {[%clk
00:00:27]} {[%emt 00:00:02]} 32. Qd5 {[%clk 00:09:41]} {[%emt 00:00:21]} e6
{[%clk 00:00:23]} {[%emt 00:00:07]} 33. Qd2 {[%clk 00:09:36]} {[%emt 00:00:09]}
Qa1 {[%clk 00:00:09]} {[%emt 00:00:16]} 34. Bg4 {[%clk 00:08:28]} {[%emt
00:01:12]} Bc3 {[%clk 00:00:00]} {[%emt 00:00:08]} 35. Qd3 {[%clk 00:08:18]}
{[%emt 00:00:11]} 1-0

[Event "15. ročník Dobrovický rapid Tereos TTD a.s."]
[Site "Dobrovice, Czech Republic"]
[Date "2020.02.29"]
[Round "1.14"]
[White "Seiner Frantisek"]
[Black "Jerman Richard"]
[Result "0-1"]
[TimeControl "15m + 3s / tah"]
[WhiteElo "1703"]
[BlackElo "2046"]

1. e4 {[%clk 00:15:02]} {[%emt 00:00:04]} e5 {[%clk 00:15:05]} {[%emt
00:00:02]} 2. Nf3 {[%clk 00:15:03]} {[%emt 00:00:02]} Nc6 {[%clk 00:15:06]}
{[%emt 00:00:02]} 3. Bc4 {[%clk 00:15:04]} {[%emt 00:00:01]} Nf6 {[%clk
00:15:09]} 4. d3 {[%clk 00:15:02]} {[%emt 00:00:05]} Be7 {[%clk 00:15:10]}
{[%emt 00:00:02]} 5. Nc3 {[%clk 00:15:02]} {[%emt 00:00:03]} d6 {[%clk
00:15:12]} 6. Be3 {[%clk 00:14:52]} {[%emt 00:00:14]} Na5 {[%clk 00:15:13]}
{[%emt 00:00:02]} 7. Bb3 {[%clk 00:14:53]} {[%emt 00:00:02]} O-O {[%clk
00:15:14]} {[%emt 00:00:03]} 8. O-O {[%clk 00:14:53]} {[%emt 00:00:02]} Bg4
{[%clk 00:15:11]} {[%emt 00:00:06]} 9. h3 {[%clk 00:14:50]} {[%emt 00:00:06]}
Bh5 {[%clk 00:15:13]} {[%emt 00:00:01]} 10. Ba4 {[%clk 00:14:26]} {[%emt
00:00:27]} c5 {[%clk 00:14:50]} {[%emt 00:00:26]} 11. Bg5 {[%clk 00:13:59]}
{[%emt 00:00:29]} a6 {[%clk 00:14:45]} {[%emt 00:00:09]} 12. Qe2 {[%clk
00:13:22]} {[%emt 00:00:39]} b5 {[%clk 00:14:23]} {[%emt 00:00:26]} 13. Bb3
{[%clk 00:12:52]} {[%emt 00:00:33]} Nxb3 {[%clk 00:14:22]} {[%emt 00:00:04]} 14.
axb3 {[%clk 00:12:52]} {[%emt 00:00:03]} b4 {[%clk 00:13:56]} {[%emt 00:00:30]}
15. Bxf6 {[%clk 00:12:35]} {[%emt 00:00:20]} Bxf6 {[%clk 00:13:10]} {[%emt
00:00:50]} 16. Nd5 {[%clk 00:12:35]} {[%emt 00:00:03]} Be7 {[%clk 00:13:02]}
{[%emt 00:00:11]} 17. g4 {[%clk 00:12:08]} {[%emt 00:00:30]} Bg6 {[%clk
00:13:04]} 18. Nh2 {[%clk 00:11:59]} {[%emt 00:00:12]} f6 {[%clk 00:12:59]}
{[%emt 00:00:08]} 19. f4 {[%clk 00:11:51]} {[%emt 00:00:11]} Bf7 {[%clk
00:12:47]} {[%emt 00:00:16]} 20. Nxe7+ {[%clk 00:11:41]} {[%emt 00:00:12]} Qxe7
{[%clk 00:12:48]} {[%emt 00:00:01]} 21. f5 {[%clk 00:11:20]} {[%emt 00:00:25]}
Rfd8 {[%clk 00:12:31]} {[%emt 00:00:20]} 22. Ra5 {[%clk 00:10:10]} {[%emt
00:01:12]} Be8 {[%clk 00:11:44]} {[%emt 00:00:51]} 23. c4 {[%clk 00:09:58]}
{[%emt 00:00:16]} bxc3 {[%clk 00:11:37]} {[%emt 00:00:10]} 24. bxc3 {[%clk
00:09:59]} {[%emt 00:00:02]} Qb7 {[%clk 00:11:36]} {[%emt 00:00:03]} 25. Rfa1
{[%clk 00:09:28]} {[%emt 00:00:34]} Qxb3 {[%clk 00:11:18]} {[%emt 00:00:22]} 26.
Rxa6 {[%clk 00:09:18]} {[%emt 00:00:12]} Rxa6 {[%clk 00:11:19]} {[%emt
00:00:01]} 27. Rxa6 {[%clk 00:09:18]} {[%emt 00:00:03]} Qxc3 {[%clk 00:11:19]}
{[%emt 00:00:04]} 28. Nf3 {[%clk 00:09:01]} {[%emt 00:00:21]} Bb5 {[%clk
00:10:49]} {[%emt 00:00:33]} 29. Ra7 {[%clk 00:08:42]} {[%emt 00:00:21]} Bxd3
{[%clk 00:09:52]} {[%emt 00:01:00]} 30. Qa2+ {[%clk 00:08:42]} {[%emt
00:00:03]} Bc4 {[%clk 00:09:53]} {[%emt 00:00:02]} 31. Qf2 {[%clk 00:08:13]}
{[%emt 00:00:33]} Rb8 {[%clk 00:09:25]} {[%emt 00:00:32]} 32. g5 {[%clk
00:08:00]} {[%emt 00:00:16]} Rb1+ {[%clk 00:09:24]} {[%emt 00:00:03]} 33. Kg2
{[%clk 00:07:54]} {[%emt 00:00:09]} Rb2 {[%clk 00:09:18]} {[%emt 00:00:09]} 34.
gxf6 {[%clk 00:07:32]} {[%emt 00:00:25]} Rxf2+ {[%clk 00:09:18]} {[%emt
00:00:03]} 35. Kxf2 {[%clk 00:07:33]} {[%emt 00:00:02]} gxf6 {[%clk 00:09:13]}
{[%emt 00:00:08]} 0-1

[ePGN "0.1;DGT LiveChess/2.2.5"]

[Event "15. ročník Dobrovický rapid Tereos TTD a.s."]
[Site "Dobrovice, Czech Republic"]
[Date "2020.02.29"]
[Round "2.1"]
[White "Horak Otakar"]
[Black "Plat Vojtech"]
[Result "0-1"]
[TimeControl "15m + 3s / tah"]
[WhiteElo "1938"]
[BlackElo "2553"]

1. d4 {[%clk 00:15:04]} {[%emt 00:19:26]} d6 {[%clk 00:15:04]} {[%emt
00:00:06]} 2. c4 {[%clk 00:15:04]} {[%emt 00:00:03]} e5 {[%clk 00:15:06]} 3. g3
{[%clk 00:13:56]} {[%emt 00:01:12]} exd4 {[%clk 00:15:04]} {[%emt 00:00:05]} 4.
Qxd4 {[%clk 00:13:58]} Nf6 {[%clk 00:15:04]} {[%emt 00:00:02]} 5. Bg2 {[%clk
00:14:00]} {[%emt 00:00:02]} Nc6 {[%clk 00:14:55]} {[%emt 00:00:12]} 6. Qd1
{[%clk 00:14:02]} {[%emt 00:00:01]} g6 {[%clk 00:14:53]} {[%emt 00:00:06]} 7.
b3 {[%clk 00:14:02]} {[%emt 00:00:02]} Bg7 {[%clk 00:14:50]} {[%emt 00:00:06]}
8. Bb2 {[%clk 00:14:04]} {[%emt 00:00:01]} O-O {[%clk 00:14:45]} {[%emt
00:00:08]} 9. Nf3 {[%clk 00:14:06]} {[%emt 00:00:01]} Re8 {[%clk 00:14:38]}
{[%emt 00:00:09]} 10. O-O {[%clk 00:14:07]} {[%emt 00:00:02]} Bf5 {[%clk
00:14:30]} {[%emt 00:00:11]} 11. Nbd2 {[%clk 00:13:57]} {[%emt 00:00:13]} Qd7
{[%clk 00:14:30]} {[%emt 00:00:04]} 12. Nd4 {[%clk 00:12:53]} {[%emt 00:01:07]}
Nxd4 {[%clk 00:12:55]} {[%emt 00:01:38]} 13. Bxd4 {[%clk 00:12:53]} {[%emt
00:00:02]} Bh3 {[%clk 00:12:57]} 14. Re1 {[%clk 00:12:40]} {[%emt 00:00:18]}
Bxg2 {[%clk 00:12:57]} {[%emt 00:00:02]} 15. Kxg2 {[%clk 00:12:43]} d5 {[%clk
00:11:47]} {[%emt 00:01:13]} 16. cxd5 {[%clk 00:12:23]} {[%emt 00:00:23]} Qxd5+
{[%clk 00:11:40]} {[%emt 00:00:11]} 17. Nf3 {[%clk 00:12:25]} Qh5 {[%clk
00:10:37]} {[%emt 00:01:07]} 18. Qc2 {[%clk 00:12:07]} {[%emt 00:00:20]} c6
{[%clk 00:10:08]} {[%emt 00:00:33]} 19. Rad1 {[%clk 00:11:59]} {[%emt
00:00:10]} Re6 {[%clk 00:09:37]} {[%emt 00:00:34]} 20. Qb2 {[%clk 00:11:51]}
{[%emt 00:00:12]} a5 {[%clk 00:08:03]} {[%emt 00:01:37]} 21. Bc3 {[%clk
00:11:08]} {[%emt 00:00:46]} Rae8 {[%clk 00:07:32]} {[%emt 00:00:34]} 22. e3
{[%clk 00:11:08]} {[%emt 00:00:04]} g5 {[%clk 00:06:59]} {[%emt 00:00:37]} 23.
h3 {[%clk 00:11:02]} {[%emt 00:00:08]} Qg6 {[%clk 00:06:51]} {[%emt 00:00:10]}
24. Qb1 {[%clk 00:09:32]} {[%emt 00:01:33]} Ne4 {[%clk 00:06:39]} {[%emt
00:00:16]} 25. Bxg7 {[%clk 00:09:33]} {[%emt 00:00:02]} Qxg7 {[%clk 00:06:38]}
{[%emt 00:00:04]} 26. Rd4 {[%clk 00:09:17]} {[%emt 00:00:18]} c5 {[%clk
00:06:21]} {[%emt 00:00:20]} 27. Rd7 {[%clk 00:09:12]} {[%emt 00:00:07]} h5
{[%clk 00:06:11]} {[%emt 00:00:14]} 28. Qd3 {[%clk 00:08:38]} {[%emt 00:00:37]}
Qf6 {[%clk 00:05:12]} {[%emt 00:01:02]} 29. Qc2 {[%clk 00:08:12]} {[%emt
00:00:29]} g4 {[%clk 00:05:09]} {[%emt 00:00:06]} 30. hxg4 {[%clk 00:08:13]}
{[%emt 00:00:01]} hxg4 {[%clk 00:05:12]} {[%emt 00:00:01]} 31. Nh4 {[%clk
00:08:11]} {[%emt 00:00:05]} b6 {[%clk 00:04:59]} {[%emt 00:00:14]} 32. Red1
{[%clk 00:08:04]} {[%emt 00:00:10]} Re5 {[%clk 00:04:13]} {[%emt 00:00:49]} 33.
R1d5 {[%clk 00:07:24]} {[%emt 00:00:43]} Rxd5 {[%clk 00:03:53]} {[%emt
00:00:23]} 34. Rxd5 {[%clk 00:07:26]} {[%emt 00:00:01]} Qc6 {[%clk 00:03:54]}
{[%emt 00:00:02]} 35. Qd1 {[%clk 00:07:18]} {[%emt 00:00:10]} Nf6 {[%clk
00:03:46]} {[%emt 00:00:11]} 36. e4 {[%clk 00:06:47]} {[%emt 00:00:35]} Nxd5
{[%clk 00:03:43]} {[%emt 00:00:06]} 37. Qxg4+ {[%clk 00:05:09]} {[%emt
00:01:41]} Kf8 {[%clk 00:03:45]} {[%emt 00:00:01]} 38. Nf5 {[%clk 00:02:20]}
{[%emt 00:02:52]} Qg6 {[%clk 00:03:47]} {[%emt 00:00:02]} 39. Qh4 {[%clk
00:02:22]} {[%emt 00:00:02]} Nf6 {[%clk 00:03:40]} {[%emt 00:00:10]} 0-1

[Event "15. ročník Dobrovický rapid Tereos TTD a.s."]
[Site "Dobrovice, Czech Republic"]
[Date "2020.02.29"]
[Round "2.2"]
[White "Zwardon Vojtech"]
[Black "Stursa Jan"]
[Result "1-0"]
[TimeControl "15m + 3s / tah"]
[WhiteElo "2460"]
[BlackElo "1943"]

1. c4 {[%clk 00:15:04]} {[%emt 00:00:02]} Nf6 {[%clk 00:14:55]} {[%emt
00:00:11]} 2. Nc3 {[%clk 00:15:05]} {[%emt 00:00:02]} g6 {[%clk 00:14:47]}
{[%emt 00:00:11]} 3. g3 {[%clk 00:15:07]} {[%emt 00:00:01]} Bg7 {[%clk
00:14:48]} {[%emt 00:00:02]} 4. Bg2 {[%clk 00:15:10]} d6 {[%clk 00:14:45]}
{[%emt 00:00:06]} 5. d3 {[%clk 00:15:11]} {[%emt 00:00:02]} e5 {[%clk
00:14:32]} {[%emt 00:00:16]} 6. Bg5 {[%clk 00:15:11]} {[%emt 00:00:03]} c6
{[%clk 00:14:19]} {[%emt 00:00:16]} 7. Nf3 {[%clk 00:14:58]} {[%emt 00:00:17]}
O-O {[%clk 00:14:08]} {[%emt 00:00:15]} 8. Qd2 {[%clk 00:14:59]} {[%emt
00:00:01]} Bf5 {[%clk 00:12:46]} {[%emt 00:01:25]} 9. Bh6 {[%clk 00:14:57]}
{[%emt 00:00:05]} Nbd7 {[%clk 00:12:03]} {[%emt 00:00:46]} 10. h4 {[%clk
00:14:53]} {[%emt 00:00:08]} Bxh6 {[%clk 00:11:54]} {[%emt 00:00:12]} 11. Qxh6
{[%clk 00:14:54]} {[%emt 00:00:02]} Qb6 {[%clk 00:11:55]} {[%emt 00:00:01]} 12.
Qd2 {[%clk 00:14:44]} {[%emt 00:00:12]} h5 {[%clk 00:11:27]} {[%emt 00:00:32]}
13. e4 {[%clk 00:14:26]} {[%emt 00:00:21]} Bg4 {[%clk 00:10:46]} {[%emt
00:00:44]} 14. Ng5 {[%clk 00:13:51]} {[%emt 00:00:38]} Nc5 {[%clk 00:10:34]}
{[%emt 00:00:15]} 15. O-O {[%clk 00:13:19]} {[%emt 00:00:35]} Ne6 {[%clk
00:10:18]} {[%emt 00:00:19]} 16. Nxe6 {[%clk 00:12:54]} {[%emt 00:00:27]} Bxe6
{[%clk 00:10:12]} {[%emt 00:00:09]} 17. b4 {[%clk 00:12:53]} {[%emt 00:00:04]}
Qc7 {[%clk 00:08:37]} {[%emt 00:01:38]} 18. Rab1 {[%clk 00:12:29]} {[%emt
00:00:27]} Rfd8 {[%clk 00:08:14]} {[%emt 00:00:27]} 19. Qg5 {[%clk 00:12:26]}
{[%emt 00:00:06]} Kg7 {[%clk 00:08:01]} {[%emt 00:00:16]} 20. Rfe1 {[%clk
00:12:03]} {[%emt 00:00:24]} Rab8 {[%clk 00:06:30]} {[%emt 00:01:35]} 21. Rbc1
{[%clk 00:11:51]} {[%emt 00:00:15]} Qd7 {[%clk 00:06:24]} {[%emt 00:00:09]} 22.
Qe3 {[%clk 00:11:29]} {[%emt 00:00:25]} b6 {[%clk 00:06:03]} {[%emt 00:00:25]}
23. a4 {[%clk 00:11:29]} {[%emt 00:00:02]} c5 {[%clk 00:05:54]} {[%emt
00:00:11]} 24. Rb1 {[%clk 00:11:16]} {[%emt 00:00:16]} Ng8 {[%clk 00:05:28]}
{[%emt 00:00:30]} 25. b5 {[%clk 00:10:57]} {[%emt 00:00:22]} Nh6 {[%clk
00:05:09]} {[%emt 00:00:22]} 26. a5 {[%clk 00:10:28]} {[%emt 00:00:32]} Rf8
{[%clk 00:05:02]} {[%emt 00:00:10]} 27. Ra1 {[%clk 00:10:20]} {[%emt 00:00:11]}
f5 {[%clk 00:04:55]} {[%emt 00:00:11]} 28. exf5 {[%clk 00:09:47]} {[%emt
00:00:35]} Nxf5 {[%clk 00:04:50]} {[%emt 00:00:07]} 29. Qd2 {[%clk 00:09:38]}
{[%emt 00:00:12]} Nd4 {[%clk 00:04:47]} {[%emt 00:00:06]} 30. axb6 {[%clk
00:09:27]} {[%emt 00:00:14]} axb6 {[%clk 00:04:43]} {[%emt 00:00:07]} 31. Ra6
{[%clk 00:09:29]} {[%emt 00:00:02]} Bh3 {[%clk 00:04:26]} {[%emt 00:00:21]} 32.
Bd5 {[%clk 00:08:50]} {[%emt 00:00:41]} Nf3+ {[%clk 00:04:17]} {[%emt
00:00:13]} 33. Bxf3 {[%clk 00:08:51]} {[%emt 00:00:01]} Rxf3 {[%clk 00:04:19]}
{[%emt 00:00:01]} 34. Ne4 {[%clk 00:08:48]} {[%emt 00:00:06]} Bf5 {[%clk
00:02:12]} {[%emt 00:02:11]} 35. Rea1 {[%clk 00:08:09]} {[%emt 00:00:42]} Bxe4
{[%clk 00:01:51]} {[%emt 00:00:24]} 36. dxe4 {[%clk 00:08:08]} {[%emt
00:00:03]} Qg4 {[%clk 00:01:33]} {[%emt 00:00:22]} 37. Ra7+ {[%clk 00:08:03]}
{[%emt 00:00:08]} Kg8 {[%clk 00:01:31]} {[%emt 00:00:04]} 38. Ra8 {[%clk
00:03:29]} {[%emt 00:04:37]} Qc8 {[%clk 00:00:44]} {[%emt 00:00:50]} 39. Qxd6
{[%clk 00:03:26]} {[%emt 00:00:06]} Rxa8 {[%clk 00:00:31]} {[%emt 00:00:16]} 40.
Qd5+ {[%clk 00:03:29]} {[%emt 00:00:01]} 1-0

[Event "15. ročník Dobrovický rapid Tereos TTD a.s."]
[Site "Dobrovice, Czech Republic"]
[Date "2020.02.29"]
[Round "2.3"]
[White "Lasek Frantisek"]
[Black "Kourousis Epaminondas"]
[Result "0-1"]
[TimeControl "15m + 3s / tah"]
[WhiteElo "1932"]
[BlackElo "2406"]

1. f4 {[%clk 00:15:04]} {[%emt 00:00:01]} d5 {[%clk 00:15:01]} {[%emt
00:00:05]} 2. Nf3 {[%clk 00:15:03]} {[%emt 00:00:04]} g6 {[%clk 00:15:03]}
{[%emt 00:00:01]} 3. e3 {[%clk 00:14:51]} {[%emt 00:00:14]} Bg7 {[%clk
00:15:03]} {[%emt 00:00:03]} 4. d4 {[%clk 00:14:45]} {[%emt 00:00:09]} Nh6
{[%clk 00:15:02]} {[%emt 00:00:04]} 5. Bd3 {[%clk 00:14:32]} {[%emt 00:00:15]}
Bf5 {[%clk 00:15:00]} {[%emt 00:00:05]} 6. O-O {[%clk 00:14:29]} {[%emt
00:00:06]} O-O {[%clk 00:15:00]} {[%emt 00:00:03]} 7. h3 {[%clk 00:14:26]}
{[%emt 00:00:07]} c5 {[%clk 00:14:37]} {[%emt 00:00:25]} 8. c3 {[%clk
00:14:21]} {[%emt 00:00:08]} Bxd3 {[%clk 00:14:08]} {[%emt 00:00:32]} 9. Qxd3
{[%clk 00:14:21]} {[%emt 00:00:03]} Nf5 {[%clk 00:13:46]} {[%emt 00:00:25]} 10.
Bd2 {[%clk 00:13:24]} {[%emt 00:01:00]} Qb6 {[%clk 00:13:41]} {[%emt 00:00:08]}
11. b3 {[%clk 00:13:05]} {[%emt 00:00:22]} Ng3 {[%clk 00:13:39]} {[%emt
00:00:05]} 12. Re1 {[%clk 00:12:53]} {[%emt 00:00:14]} Qa6 {[%clk 00:13:19]}
{[%emt 00:00:22]} 13. Qxa6 {[%clk 00:12:44]} {[%emt 00:00:13]} Nxa6 {[%clk
00:13:21]} {[%emt 00:00:02]} 14. Na3 {[%clk 00:12:34]} {[%emt 00:00:13]} Rac8
{[%clk 00:12:27]} {[%emt 00:00:56]} 15. Nb5 {[%clk 00:12:22]} {[%emt 00:00:15]}
Nc7 {[%clk 00:12:28]} {[%emt 00:00:03]} 16. Nxc7 {[%clk 00:11:39]} {[%emt
00:00:46]} Rxc7 {[%clk 00:12:30]} {[%emt 00:00:01]} 17. Kh2 {[%clk 00:09:30]}
{[%emt 00:02:10]} Ne4 {[%clk 00:12:31]} {[%emt 00:00:03]} 18. Rec1 {[%clk
00:09:14]} {[%emt 00:00:17]} Rfc8 {[%clk 00:12:16]} {[%emt 00:00:18]} 19. Be1
{[%clk 00:08:49]} {[%emt 00:00:29]} cxd4 {[%clk 00:11:46]} {[%emt 00:00:34]} 20.
exd4 {[%clk 00:08:08]} {[%emt 00:00:44]} Nxc3 {[%clk 00:11:43]} {[%emt
00:00:06]} 21. Bxc3 {[%clk 00:06:57]} {[%emt 00:01:15]} Rxc3 {[%clk 00:11:44]}
{[%emt 00:00:01]} 22. Re1 {[%clk 00:06:40]} {[%emt 00:00:20]} e6 {[%clk
00:11:45]} {[%emt 00:00:03]} 23. Ne5 {[%clk 00:06:32]} {[%emt 00:00:12]} Rc2
{[%clk 00:11:42]} {[%emt 00:00:06]} 24. a4 {[%clk 00:06:11]} {[%emt 00:00:24]}
Bh6 {[%clk 00:10:56]} {[%emt 00:00:49]} 0-1

[Event "15. ročník Dobrovický rapid Tereos TTD a.s."]
[Site "Dobrovice, Czech Republic"]
[Date "2020.02.29"]
[Round "2.4"]
[White "Velicka Petr"]
[Black "Postupa Pavel"]
[Result "1-0"]
[TimeControl "15m + 3s / tah"]
[WhiteElo "2395"]
[BlackElo "1934"]

1. e4 {[%clk 00:15:05]} c5 {[%clk 00:15:05]} {[%emt 00:00:02]} 2. Nf3 {[%clk
00:15:07]} d6 {[%clk 00:15:06]} {[%emt 00:00:02]} 3. Bb5+ {[%clk 00:15:09]}
{[%emt 00:00:01]} Bd7 {[%clk 00:15:07]} {[%emt 00:00:02]} 4. Bxd7+ {[%clk
00:15:10]} {[%emt 00:00:02]} Nxd7 {[%clk 00:15:08]} {[%emt 00:00:02]} 5. c4
{[%clk 00:15:12]} {[%emt 00:00:02]} g6 {[%clk 00:15:02]} {[%emt 00:00:09]} 6.
d4 {[%clk 00:15:12]} {[%emt 00:00:02]} cxd4 {[%clk 00:15:03]} {[%emt 00:00:02]}
7. Nxd4 {[%clk 00:15:13]} {[%emt 00:00:02]} Bg7 {[%clk 00:15:01]} {[%emt
00:00:05]} 8. O-O {[%clk 00:15:08]} {[%emt 00:00:09]} Ngf6 {[%clk 00:14:55]}
{[%emt 00:00:09]} 9. Nc3 {[%clk 00:15:08]} {[%emt 00:00:02]} O-O {[%clk
00:14:48]} {[%emt 00:00:09]} 10. b3 {[%clk 00:14:56]} {[%emt 00:00:16]} Nc5
{[%clk 00:14:04]} {[%emt 00:00:47]} 11. f3 {[%clk 00:14:55]} {[%emt 00:00:04]}
Qb6 {[%clk 00:13:43]} {[%emt 00:00:24]} 12. Be3 {[%clk 00:14:55]} {[%emt
00:00:03]} e6 {[%clk 00:13:34]} {[%emt 00:00:13]} 13. Rb1 {[%clk 00:14:14]}
{[%emt 00:00:44]} Ncd7 {[%clk 00:13:05]} {[%emt 00:00:31]} 14. Nf5 {[%clk
00:14:06]} {[%emt 00:00:11]} Qc6 {[%clk 00:13:00]} {[%emt 00:00:09]} 15. Nxg7
{[%clk 00:14:00]} {[%emt 00:00:09]} Kxg7 {[%clk 00:13:01]} {[%emt 00:00:02]} 16.
Qd2 {[%clk 00:12:31]} {[%emt 00:01:32]} Kg8 {[%clk 00:11:51]} {[%emt 00:01:14]}
17. Rfd1 {[%clk 00:12:30]} {[%emt 00:00:04]} Ne5 {[%clk 00:10:37]} {[%emt
00:01:17]} 18. Qxd6 {[%clk 00:12:27]} {[%emt 00:00:06]} Qxd6 {[%clk 00:10:38]}
{[%emt 00:00:02]} 19. Rxd6 {[%clk 00:12:28]} {[%emt 00:00:02]} Ne8 {[%clk
00:10:36]} {[%emt 00:00:04]} 20. Rd2 {[%clk 00:12:26]} {[%emt 00:00:04]} f6
{[%clk 00:10:28]} {[%emt 00:00:12]} 21. Rbd1 {[%clk 00:12:27]} {[%emt
00:00:03]} Kf7 {[%clk 00:09:59]} {[%emt 00:00:32]} 22. Bc5 {[%clk 00:12:07]}
{[%emt 00:00:22]} Rg8 {[%clk 00:09:54]} {[%emt 00:00:09]} 23. f4 {[%clk
00:12:09]} {[%emt 00:00:01]} b6 {[%clk 00:09:18]} {[%emt 00:00:38]} 24. Rd7+
{[%clk 00:12:08]} {[%emt 00:00:05]} 1-0